[Event "*** Titled Tuesday Blitz"]
[Site "Chess.com"]
[Date "2020.03.03"]
[Round "3"]
[White "AnkitGajwa"]
[Black "VerdeNotte"]
[Result "1-0"]
[WhiteElo "2490"]
[BlackElo "2751"]
[TimeControl "180+1"]
[EndTime "13:32:49 PST"]
[Termination "AnkitGajwa won by resignation"]

1. d4 {[%clk 0:03:00.9]} 1... Nf6 {[%clk 0:02:58.6]} 2. c4 {[%clk 0:03:00.9]}
2... g6 {[%clk 0:02:57.8]} 3. Nc3 {[%clk 0:03:00.5]} 3... Bg7 {[%clk 0:02:57.9]}
4. e4 {[%clk 0:02:58.5]} 4... d6 {[%clk 0:02:58.1]} 5. Nf3 {[%clk 0:02:58.5]}
5... O-O {[%clk 0:02:57.7]} 6. Be2 {[%clk 0:02:58.1]} 6... Nbd7 {[%clk
0:02:57.7]} 7. O-O {[%clk 0:02:57]} 7... e5 {[%clk 0:02:57.5]} 8. d5 {[%clk
0:02:56.9]} 8... Nc5 {[%clk 0:02:57.3]} 9. Bg5 {[%clk 0:02:56.6]} 9... h6 {[%clk
0:02:57]} 10. Bxf6 {[%clk 0:02:54.5]} 10... Qxf6 {[%clk 0:02:56.2]} 11. b4
{[%clk 0:02:54]} 11... Na6 {[%clk 0:02:56.3]} 12. a3 {[%clk 0:02:53.2]} 12...
Qe7 {[%clk 0:02:55.7]} 13. Nd2 {[%clk 0:02:51.7]} 13... f5 {[%clk 0:02:55.3]}
14. Nb3 {[%clk 0:02:47.8]} 14... Bd7 {[%clk 0:02:47.9]} 15. Rc1 {[%clk
0:02:36.3]} 15... Qg5 {[%clk 0:02:45]} 16. c5 {[%clk 0:02:32.3]} 16... f4 {[%clk
0:02:45.1]} 17. Kh1 {[%clk 0:02:24.2]} 17... h5 {[%clk 0:02:42.4]} 18. c6 {[%clk
0:02:21.5]} 18... Bc8 {[%clk 0:02:35.2]} 19. b5 {[%clk 0:02:20.9]} 19... Nb8
{[%clk 0:02:31.4]} 20. cxb7 {[%clk 0:02:19.5]} 20... Bxb7 {[%clk 0:02:30.3]} 21.
Nb1 {[%clk 0:01:55.9]} 21... Rf7 {[%clk 0:02:26.7]} 22. Rc3 {[%clk 0:01:51.7]}
22... Bc8 {[%clk 0:02:24]} 23. Qc2 {[%clk 0:01:48.9]} 23... Nd7 {[%clk
0:01:22.9]} 24. Rxc7 {[%clk 0:01:42.4]} 24... Nb6 {[%clk 0:01:19.4]} 25. Rxf7
{[%clk 0:01:40.8]} 25... Kxf7 {[%clk 0:01:20.3]} 26. Qc7+ {[%clk 0:01:27.6]}
26... Qe7 {[%clk 0:01:19.8]} 27. Rc1 {[%clk 0:01:24.1]} 27... Bd7 {[%clk
0:01:03.9]} 28. Qb7 {[%clk 0:01:22.5]} 28... Rc8 {[%clk 0:01:04]} 29. Rxc8
{[%clk 0:01:18]} 29... Nxc8 {[%clk 0:01:03.8]} 30. Na5 {[%clk 0:01:09.3]} 30...
Ke8 {[%clk 0:01:04.1]} 31. Nc6 {[%clk 0:01:08]} 31... Qh4 {[%clk 0:01:02.2]} 32.
Nb8 {[%clk 0:00:59.2]} 32... Qd8 {[%clk 0:00:46.4]} 33. Nc3 {[%clk 0:00:42.8]}
33... Bf8 {[%clk 0:00:43.7]} 34. b6 {[%clk 0:00:37.1]} 34... Nxb6 {[%clk
0:00:41.9]} 35. Nxd7 {[%clk 0:00:36.7]} 35... Nxd7 {[%clk 0:00:41.9]} 36. Qxa7
{[%clk 0:00:35.7]} 36... Qb8 {[%clk 0:00:31.3]} 37. Qxb8+ {[%clk 0:00:27.6]}
37... Nxb8 {[%clk 0:00:32.2]} 38. Kg1 {[%clk 0:00:26.6]} 38... Be7 {[%clk
0:00:31.7]} 39. Kf1 {[%clk 0:00:26]} 39... Bd8 {[%clk 0:00:32]} 40. Bb5+ {[%clk
0:00:25.8]} 40... Ke7 {[%clk 0:00:31.9]} 41. Ke2 {[%clk 0:00:26.2]} 41... Bb6
{[%clk 0:00:31.5]} 42. f3 {[%clk 0:00:26.1]} 42... g5 {[%clk 0:00:31.7]} 43. Kd3
{[%clk 0:00:25.8]} 43... g4 {[%clk 0:00:31.5]} 44. h3 {[%clk 0:00:24.2]} 44...
Kf6 {[%clk 0:00:29.7]} 45. hxg4 {[%clk 0:00:23.2]} 45... hxg4 {[%clk 0:00:29.8]}
46. Ne2 {[%clk 0:00:20.2]} 46... Kg5 {[%clk 0:00:28.8]} 47. Nc3 {[%clk
0:00:17.9]} 47... Kh4 {[%clk 0:00:26.1]} 48. Na4 {[%clk 0:00:16.9]} 48... Ba7
{[%clk 0:00:22.5]} 49. Ke2 {[%clk 0:00:14.6]} 49... Kg3 {[%clk 0:00:22.4]} 50.
fxg4 {[%clk 0:00:13]} 50... Kxg2 {[%clk 0:00:18.1]} 51. g5 {[%clk 0:00:12.7]}
51... f3+ {[%clk 0:00:18.6]} 52. Kd1 {[%clk 0:00:11.8]} 52... Be3 {[%clk
0:00:18.1]} 53. g6 {[%clk 0:00:11.6]} 53... Bh6 {[%clk 0:00:18.6]} 54. Nc3
{[%clk 0:00:09.6]} 54... f2 {[%clk 0:00:17.8]} 55. a4 {[%clk 0:00:06.7]} 55...
f1=Q+ {[%clk 0:00:17.8]} 56. Bxf1+ {[%clk 0:00:07]} 56... Kxf1 {[%clk
0:00:18.7]} 57. Nb5 {[%clk 0:00:06.8]} 57... Kf2 {[%clk 0:00:16.9]} 58. Nxd6
{[%clk 0:00:06.9]} 58... Kf3 {[%clk 0:00:17.2]} 59. Nf7 {[%clk 0:00:06.9]} 59...
Bg7 {[%clk 0:00:16.7]} 60. d6 {[%clk 0:00:07.4]} 60... Kxe4 {[%clk 0:00:16.6]}
61. a5 {[%clk 0:00:08]} 61... Kf5 {[%clk 0:00:12.7]} 62. a6 {[%clk 0:00:08.3]}
62... Nxa6 {[%clk 0:00:12.2]} 63. d7 {[%clk 0:00:08.7]} 63... Bf6 {[%clk
0:00:11.8]} 64. g7 {[%clk 0:00:08.1]} 64... Bxg7 {[%clk 0:00:11.9]} 65. d8=Q
{[%clk 0:00:08.5]} 65... Nc5 {[%clk 0:00:11]} 66. Qc8+ {[%clk 0:00:08.6]} 66...
Kf6 {[%clk 0:00:11.4]} 67. Qxc5 {[%clk 0:00:08.1]} 67... Kxf7 {[%clk 0:00:12.3]}
68. Qd5+ {[%clk 0:00:08.2]} 68... Kf6 {[%clk 0:00:12.3]} 69. Ke2 {[%clk
0:00:09.1]} 69... Kf5 {[%clk 0:00:12.5]} 70. Kf3 {[%clk 0:00:10]} 70... Bf6
{[%clk 0:00:11.4]} 71. Qf7 {[%clk 0:00:10.1]} 71... Kg5 {[%clk 0:00:11.4]} 72.
Ke4 {[%clk 0:00:10.6]} 1-0

[Event "*** Titled Tuesday Blitz"]
[Site "Chess.com"]
[Date "2020.03.03"]
[Round "3"]
[White "vladimirdamjanovic"]
[Black "aridannie"]
[Result "1/2-1/2"]
[WhiteElo "2641"]
[BlackElo "2428"]
[TimeControl "180+1"]
[EndTime "13:32:50 PST"]
[Termination "Game drawn by repetition"]

1. e4 {[%clk 0:03:00.9]} 1... c5 {[%clk 0:02:59.7]} 2. Nf3 {[%clk 0:03:00.4]}
2... Nc6 {[%clk 0:02:59.5]} 3. d4 {[%clk 0:02:59.6]} 3... cxd4 {[%clk
0:02:59.3]} 4. Nxd4 {[%clk 0:03:00.5]} 4... e5 {[%clk 0:02:59.6]} 5. Nb5 {[%clk
0:03:00.2]} 5... d6 {[%clk 0:02:59.7]} 6. Bc4 {[%clk 0:03:00.3]} 6... Be7 {[%clk
0:02:56.4]} 7. Bg5 {[%clk 0:02:58.1]} 7... a6 {[%clk 0:02:38.3]} 8. Bxe7 {[%clk
0:02:55.9]} 8... Kxe7 {[%clk 0:02:39.2]} 9. N5c3 {[%clk 0:02:54.8]} 9... Nf6
{[%clk 0:02:39.3]} 10. Nd5+ {[%clk 0:02:52.3]} 10... Nxd5 {[%clk 0:02:37.5]} 11.
Bxd5 {[%clk 0:02:52.9]} 11... Re8 {[%clk 0:02:27.8]} 12. Nc3 {[%clk 0:02:53.2]}
12... Kf8 {[%clk 0:02:26.3]} 13. Qh5 {[%clk 0:02:52.7]} 13... Be6 {[%clk
0:02:19.3]} 14. Qxh7 {[%clk 0:02:52.3]} 14... Nd4 {[%clk 0:02:16.8]} 15. O-O-O
{[%clk 0:02:42.4]} 15... Qg5+ {[%clk 0:02:11.9]} 16. Kb1 {[%clk 0:02:42.1]}
16... Ke7 {[%clk 0:02:07.1]} 17. h4 {[%clk 0:02:32]} 17... Qf6 {[%clk 0:02:05]}
18. Qh5 {[%clk 0:02:13.7]} 18... Rab8 {[%clk 0:01:50.3]} 19. Qg5 {[%clk
0:02:02.5]} 19... b5 {[%clk 0:01:46.6]} 20. Qxf6+ {[%clk 0:01:52.7]} 20... Kxf6
{[%clk 0:01:47.5]} 21. Rhe1 {[%clk 0:01:40.2]} 21... Rec8 {[%clk 0:01:43.9]} 22.
Rd2 {[%clk 0:01:30.4]} 22... b4 {[%clk 0:01:39.7]} 23. Ne2 {[%clk 0:01:30.1]}
23... Nb5 {[%clk 0:01:38.5]} 24. Kc1 {[%clk 0:01:22.4]} 24... Rc7 {[%clk
0:01:31.2]} 25. Bb3 {[%clk 0:01:01.9]} 25... Ke7 {[%clk 0:01:24.4]} 26. Red1
{[%clk 0:00:56.2]} 26... Rbc8 {[%clk 0:01:20.1]} 27. Kb1 {[%clk 0:00:54.7]}
27... Bc4 {[%clk 0:01:11.3]} 28. Ng3 {[%clk 0:00:46.3]} 28... g6 {[%clk
0:01:08.9]} 29. h5 {[%clk 0:00:44.7]} 29... Nd4 {[%clk 0:01:05.6]} 30. hxg6
{[%clk 0:00:36.6]} 30... fxg6 {[%clk 0:01:02.9]} 31. Bxc4 {[%clk 0:00:33.7]}
31... Rxc4 {[%clk 0:01:03.2]} 32. Rc1 {[%clk 0:00:33.8]} 32... b3 {[%clk
0:00:53]} 33. c3 {[%clk 0:00:32.1]} 33... bxa2+ {[%clk 0:00:51.9]} 34. Kxa2
{[%clk 0:00:32.3]} 34... Ra4+ {[%clk 0:00:51.6]} 35. Kb1 {[%clk 0:00:30.9]}
35... Nb3 {[%clk 0:00:51.8]} 36. Rcd1 {[%clk 0:00:29.1]} 36... Nxd2+ {[%clk
0:00:49.3]} 37. Rxd2 {[%clk 0:00:30]} 37... Rac4 {[%clk 0:00:45.7]} 38. f3
{[%clk 0:00:29.4]} 38... a5 {[%clk 0:00:44.8]} 39. Nf1 {[%clk 0:00:29.5]} 39...
R4c6 {[%clk 0:00:42.4]} 40. Ne3 {[%clk 0:00:30]} 40... a4 {[%clk 0:00:41.3]} 41.
Kc2 {[%clk 0:00:28.1]} 41... Ke6 {[%clk 0:00:38.9]} 42. Nd5 {[%clk 0:00:28.1]}
42... Rh8 {[%clk 0:00:36.1]} 43. Kb1 {[%clk 0:00:25.6]} 43... Ra8 {[%clk
0:00:32.6]} 44. Ka2 {[%clk 0:00:25.3]} 44... Kf7 {[%clk 0:00:27.3]} 45. g3
{[%clk 0:00:25.3]} 45... Rc5 {[%clk 0:00:25]} 46. f4 {[%clk 0:00:25.1]} 46...
Rca5 {[%clk 0:00:22.5]} 47. Nb6 {[%clk 0:00:19.3]} 47... Rd8 {[%clk 0:00:20.2]}
48. Nc4 {[%clk 0:00:19]} 48... Ra6 {[%clk 0:00:20]} 49. Nxe5+ {[%clk 0:00:18.6]}
49... Kf6 {[%clk 0:00:19.7]} 50. Nf3 {[%clk 0:00:18.7]} 50... a3 {[%clk
0:00:18.7]} 51. b4 {[%clk 0:00:18.4]} 51... Rc8 {[%clk 0:00:17.9]} 52. Rd3
{[%clk 0:00:18.8]} 52... Rac6 {[%clk 0:00:17.5]} 53. e5+ {[%clk 0:00:19.3]}
53... dxe5 {[%clk 0:00:17.1]} 54. Nxe5 {[%clk 0:00:19.5]} 54... Rxc3 {[%clk
0:00:16.4]} 55. Rd6+ {[%clk 0:00:19.7]} 55... Kg7 {[%clk 0:00:15.8]} 56. Rxg6+
{[%clk 0:00:19.5]} 56... Kh7 {[%clk 0:00:15.8]} 57. Ra6 {[%clk 0:00:19.2]} 57...
Rxg3 {[%clk 0:00:14.5]} 58. Nc6 {[%clk 0:00:16.8]} 58... Re8 {[%clk 0:00:13.5]}
59. Ne5 {[%clk 0:00:13.5]} 59... Rd8 {[%clk 0:00:12.2]} 60. Ra7+ {[%clk
0:00:12.5]} 60... Kg8 {[%clk 0:00:10.9]} 61. Nd7 {[%clk 0:00:11.4]} 61... Rc8
{[%clk 0:00:10.2]} 62. Nc5 {[%clk 0:00:10.8]} 62... Re8 {[%clk 0:00:10.2]} 63.
Nb3 {[%clk 0:00:04.7]} 63... Re2+ {[%clk 0:00:09.8]} 64. Kxa3 {[%clk 0:00:05.4]}
64... Ree3 {[%clk 0:00:09]} 65. Ka4 {[%clk 0:00:05.9]} 65... Rxb3 {[%clk
0:00:08.5]} 66. Kb5 {[%clk 0:00:06.6]} 66... Rg4 {[%clk 0:00:07.6]} 67. Kc4
{[%clk 0:00:04.5]} 67... Rb1 {[%clk 0:00:06.6]} 68. b5 {[%clk 0:00:05]} 68...
Rxf4+ {[%clk 0:00:06.5]} 69. Kc5 {[%clk 0:00:05.4]} 69... Rc1+ {[%clk
0:00:07.4]} 70. Kd6 {[%clk 0:00:05.6]} 70... Rb4 {[%clk 0:00:07.2]} 71. Rb7
{[%clk 0:00:04.6]} 71... Rcb1 {[%clk 0:00:08.1]} 72. Kc6 {[%clk 0:00:04.5]}
72... Kf8 {[%clk 0:00:07.9]} 73. b6 {[%clk 0:00:04.5]} 73... Ke8 {[%clk
0:00:08.8]} 74. Rb8+ {[%clk 0:00:04.6]} 74... Ke7 {[%clk 0:00:08.5]} 75. b7
{[%clk 0:00:04.9]} 75... Rc1+ {[%clk 0:00:09.4]} 76. Kd5 {[%clk 0:00:04.8]}
76... Rd1+ {[%clk 0:00:08.9]} 77. Kc6 {[%clk 0:00:04.9]} 77... Rbb1 {[%clk
0:00:08.2]} 78. Rh8 {[%clk 0:00:04.3]} 78... Rdc1+ {[%clk 0:00:07.3]} 79. Kd5
{[%clk 0:00:04.7]} 79... Rxb7 {[%clk 0:00:08.2]} 80. Rh7+ {[%clk 0:00:04.4]}
80... Kd8 {[%clk 0:00:08.2]} 81. Rxb7 {[%clk 0:00:05.3]} 81... Rd1+ {[%clk
0:00:09.1]} 82. Kc6 {[%clk 0:00:05.8]} 82... Rc1+ {[%clk 0:00:08.9]} 83. Kd6
{[%clk 0:00:06.2]} 83... Rd1+ {[%clk 0:00:09.8]} 84. Ke6 {[%clk 0:00:06.7]}
84... Re1+ {[%clk 0:00:09.6]} 85. Kd6 {[%clk 0:00:07]} 85... Rd1+ {[%clk
0:00:09.2]} 86. Ke6 {[%clk 0:00:07.4]} 86... Re1+ {[%clk 0:00:09.1]} 87. Kf6
{[%clk 0:00:07.3]} 87... Rf1+ {[%clk 0:00:08.8]} 88. Ke6 {[%clk 0:00:07.1]}
88... Re1+ {[%clk 0:00:08.6]} 1/2-1/2

[Event "*** Titled Tuesday Blitz"]
[Site "Chess.com"]
[Date "2020.03.03"]
[Round "3"]
[White "albano87"]
[Black "almaguerjm"]
[Result "1/2-1/2"]
[WhiteElo "1898"]
[BlackElo "2313"]
[TimeControl "180+1"]
[EndTime "13:32:50 PST"]
[Termination "Game drawn - insufficient material"]

1. d4 {[%clk 0:03:00.8]} 1... Nf6 {[%clk 0:02:59.2]} 2. Nf3 {[%clk 0:03:00.2]}
2... d5 {[%clk 0:02:56.7]} 3. g3 {[%clk 0:03:00]} 3... Bg4 {[%clk 0:02:55.2]} 4.
Bg2 {[%clk 0:02:59.8]} 4... Nc6 {[%clk 0:02:55.4]} 5. O-O {[%clk 0:02:57.6]}
5... Qd7 {[%clk 0:02:55.1]} 6. Ne5 {[%clk 0:02:52.9]} 6... Qd6 {[%clk
0:02:51.6]} 7. Nxg4 {[%clk 0:02:49]} 7... Nxg4 {[%clk 0:02:51.7]} 8. Nc3 {[%clk
0:02:42.6]} 8... Nf6 {[%clk 0:02:49.1]} 9. Bf4 {[%clk 0:02:38.9]} 9... Qd7
{[%clk 0:02:47.5]} 10. e4 {[%clk 0:02:28.6]} 10... e6 {[%clk 0:02:39]} 11. e5
{[%clk 0:02:14.8]} 11... Ng8 {[%clk 0:02:32.8]} 12. Be3 {[%clk 0:02:14.5]} 12...
f5 {[%clk 0:01:16.8]} 13. exf6 {[%clk 0:02:10.2]} 13... Nxf6 {[%clk 0:01:17.1]}
14. Re1 {[%clk 0:02:07.6]} 14... Bd6 {[%clk 0:01:15.9]} 15. Bg5 {[%clk
0:02:00.1]} 15... O-O {[%clk 0:01:15.2]} 16. Bh3 {[%clk 0:01:59.8]} 16... Rae8
{[%clk 0:01:14.5]} 17. Bxf6 {[%clk 0:01:56]} 17... gxf6 {[%clk 0:01:14.7]} 18.
Nxd5 {[%clk 0:01:56.1]} 18... Bxg3 {[%clk 0:01:14.6]} 19. Nxf6+ {[%clk
0:01:47.2]} 19... Rxf6 {[%clk 0:01:14.1]} 20. hxg3 {[%clk 0:01:46.3]} 20... Qxd4
{[%clk 0:01:13.3]} 21. Qg4+ {[%clk 0:01:12.3]} 21... Rg6 {[%clk 0:01:01.1]} 22.
Qxd4 {[%clk 0:01:07.5]} 22... Nxd4 {[%clk 0:01:02]} 23. Re4 {[%clk 0:01:04]}
23... Nf3+ {[%clk 0:00:53]} 24. Kg2 {[%clk 0:01:03.9]} 24... Ng5 {[%clk
0:00:51.1]} 25. Rd4 {[%clk 0:01:03.6]} 25... Rf8 {[%clk 0:00:41.8]} 26. f4
{[%clk 0:00:52.1]} 26... e5 {[%clk 0:00:35.3]} 27. fxe5 {[%clk 0:00:42.2]} 27...
Nxh3 {[%clk 0:00:32.3]} 28. Kxh3 {[%clk 0:00:42.7]} 28... Rf3 {[%clk 0:00:32.7]}
29. Rg4 {[%clk 0:00:38.3]} 29... Kf7 {[%clk 0:00:30.5]} 30. Rd1 {[%clk
0:00:29.9]} 30... Rh6+ {[%clk 0:00:29.1]} 31. Kg2 {[%clk 0:00:27.9]} 31... Rf5
{[%clk 0:00:29.8]} 32. Rd7+ {[%clk 0:00:27.1]} 32... Ke6 {[%clk 0:00:30]} 33.
Rxc7 {[%clk 0:00:27.5]} 33... Rxe5 {[%clk 0:00:30]} 34. Rxb7 {[%clk 0:00:27.4]}
34... Re2+ {[%clk 0:00:30.3]} 35. Kf3 {[%clk 0:00:27.8]} 35... Rxc2 {[%clk
0:00:30.5]} 36. Rxa7 {[%clk 0:00:28.5]} 36... Rhh2 {[%clk 0:00:30.7]} 37. Re4+
{[%clk 0:00:27.9]} 37... Kd5 {[%clk 0:00:31]} 38. Ra5+ {[%clk 0:00:27.9]} 38...
Kd6 {[%clk 0:00:30.2]} 39. b4 {[%clk 0:00:27.7]} 39... h5 {[%clk 0:00:27.1]} 40.
Rd4+ {[%clk 0:00:23.4]} 40... Ke6 {[%clk 0:00:27.3]} 41. Re4+ {[%clk 0:00:21.3]}
41... Kd6 {[%clk 0:00:27.2]} 42. Rf4 {[%clk 0:00:21.7]} 42... Rhf2+ {[%clk
0:00:26.5]} 43. Ke4 {[%clk 0:00:21.4]} 43... Rce2+ {[%clk 0:00:27]} 44. Kf5
{[%clk 0:00:21.5]} 44... h4 {[%clk 0:00:23.2]} 45. gxh4 {[%clk 0:00:19.2]} 45...
Rxa2 {[%clk 0:00:17.6]} 46. Rxa2 {[%clk 0:00:16.5]} 46... Rxa2 {[%clk
0:00:17.8]} 47. h5 {[%clk 0:00:17]} 47... Rh2 {[%clk 0:00:17.9]} 48. Kg6 {[%clk
0:00:17.2]} 48... Ke5 {[%clk 0:00:18.1]} 49. Rf7 {[%clk 0:00:15.3]} 49... Rg2+
{[%clk 0:00:17.8]} 50. Kh7 {[%clk 0:00:15.3]} 50... Ke6 {[%clk 0:00:18.4]} 51.
Rf3 {[%clk 0:00:15]} 51... Rg4 {[%clk 0:00:17.1]} 52. b5 {[%clk 0:00:12.4]}
52... Rg5 {[%clk 0:00:17.2]} 53. h6 {[%clk 0:00:12.9]} 53... Rxb5 {[%clk
0:00:17.1]} 54. Kg7 {[%clk 0:00:10.5]} 54... Rg5+ {[%clk 0:00:16.8]} 55. Kh8
{[%clk 0:00:10]} 55... Ke7 {[%clk 0:00:17.3]} 56. h7 {[%clk 0:00:09.3]} 56...
Rg6 {[%clk 0:00:17.8]} 57. Rf4 {[%clk 0:00:08.4]} 57... Rg5 {[%clk 0:00:17.6]}
58. Rf2 {[%clk 0:00:08.4]} 58... Rg6 {[%clk 0:00:17.5]} 59. Ra2 {[%clk
0:00:08.6]} 59... Rg5 {[%clk 0:00:16.9]} 60. Ra7+ {[%clk 0:00:09]} 60... Ke8
{[%clk 0:00:17.3]} 61. Ra8+ {[%clk 0:00:09.1]} 61... Kf7 {[%clk 0:00:16.9]} 62.
Rg8 {[%clk 0:00:09.8]} 62... Rh5 {[%clk 0:00:15.6]} 63. Rg7+ {[%clk 0:00:10.1]}
63... Kf8 {[%clk 0:00:16.2]} 64. Rg2 {[%clk 0:00:09.9]} 64... Rh4 {[%clk
0:00:16.1]} 65. Ra2 {[%clk 0:00:10.1]} 65... Rg4 {[%clk 0:00:14.7]} 66. Ra8+
{[%clk 0:00:10.3]} 66... Kf7 {[%clk 0:00:15.3]} 67. Ra7+ {[%clk 0:00:10.8]}
67... Kf8 {[%clk 0:00:15.3]} 68. Ra6 {[%clk 0:00:10.6]} 68... Kf7 {[%clk
0:00:15.3]} 69. Ra5 {[%clk 0:00:10.8]} 69... Re4 {[%clk 0:00:14.8]} 70. Rf5+
{[%clk 0:00:11]} 70... Kg6 {[%clk 0:00:15.3]} 71. Rf8 {[%clk 0:00:11.2]} 71...
Re7 {[%clk 0:00:15.7]} 72. Rg8+ {[%clk 0:00:11.3]} 72... Kh6 {[%clk 0:00:16.2]}
73. Ra8 {[%clk 0:00:11]} 73... Rxh7+ {[%clk 0:00:16.1]} 74. Kg8 {[%clk
0:00:11.8]} 74... Rb7 {[%clk 0:00:16.4]} 75. Ra6+ {[%clk 0:00:11.5]} 75... Kg5
{[%clk 0:00:16.9]} 76. Rc6 {[%clk 0:00:12]} 76... Kf5 {[%clk 0:00:17.2]} 77. Kf8
{[%clk 0:00:12]} 77... Ke5 {[%clk 0:00:16.8]} 78. Ke8 {[%clk 0:00:12.1]} 78...
Kd5 {[%clk 0:00:16.6]} 79. Rh6 {[%clk 0:00:12.6]} 79... Rg7 {[%clk 0:00:16]} 80.
Rh5+ {[%clk 0:00:13.1]} 80... Ke6 {[%clk 0:00:16.2]} 81. Rh6+ {[%clk 0:00:13.7]}
81... Ke5 {[%clk 0:00:15.6]} 82. Ra6 {[%clk 0:00:14.3]} 82... Rb7 {[%clk
0:00:15.6]} 83. Kd8 {[%clk 0:00:14.7]} 83... Kd5 {[%clk 0:00:15.4]} 84. Rh6
{[%clk 0:00:14.8]} 84... Rg7 {[%clk 0:00:15.2]} 85. Ke8 {[%clk 0:00:14.9]} 85...
Ke5 {[%clk 0:00:15.2]} 86. Kf8 {[%clk 0:00:15.4]} 86... Rb7 {[%clk 0:00:15.4]}
87. Ke8 {[%clk 0:00:16.1]} 87... Kf5 {[%clk 0:00:15.7]} 88. Kd8 {[%clk 0:00:16]}
88... Ra7 {[%clk 0:00:16.1]} 89. Rc6 {[%clk 0:00:16.5]} 89... Ke5 {[%clk
0:00:16.2]} 90. Rc7 {[%clk 0:00:16.7]} 90... Ra8+ {[%clk 0:00:15.8]} 91. Ke7
{[%clk 0:00:16.4]} 91... Rh8 {[%clk 0:00:14.8]} 92. Rc5+ {[%clk 0:00:16.7]}
92... Kd4 {[%clk 0:00:15.3]} 93. Rg5 {[%clk 0:00:17.2]} 93... Rh7+ {[%clk
0:00:15.6]} 94. Ke6 {[%clk 0:00:17.4]} 94... Ra7 {[%clk 0:00:16.5]} 95. Rg4+
{[%clk 0:00:17.3]} 95... Kc5 {[%clk 0:00:17.1]} 96. Ke5 {[%clk 0:00:17.2]} 96...
Re7+ {[%clk 0:00:16.7]} 97. Kf6 {[%clk 0:00:17.9]} 97... Re1 {[%clk 0:00:17.3]}
98. Rg2 {[%clk 0:00:18.1]} 98... Kd6 {[%clk 0:00:17.7]} 99. Rd2+ {[%clk
0:00:18.4]} 99... Kc5 {[%clk 0:00:18.2]} 100. Kf5 {[%clk 0:00:19.1]} 100... Kc4
{[%clk 0:00:18.4]} 101. Rd8 {[%clk 0:00:19.6]} 101... Rf1+ {[%clk 0:00:18.6]}
102. Ke5 {[%clk 0:00:19.2]} 102... Re1+ {[%clk 0:00:19]} 103. Kd6 {[%clk
0:00:19.6]} 103... Rd1+ {[%clk 0:00:19.1]} 104. Kc7 {[%clk 0:00:19.8]} 104...
Rxd8 {[%clk 0:00:19.3]} 105. Kxd8 {[%clk 0:00:20.2]} 1/2-1/2